fUST/lending_fUST_20260210
["ID","MTS","AMOUNT","RATE_DAILY","PERIOD"]
[404933344,1770695441855,-152.928979,0.00038356,7]
[404933346,1770695441864,-152.928979,0.00038356,7]
[404933348,1770695441874,-152.928979,0.00038356,7]
[404933350,1770695441883,-152.928979,0.00038356,7]
[404933352,1770695441892,-152.928979,0.00038356,7]
[404933354,1770695441901,-152.928979,0.00038356,7]
[404933356,1770695441910,-152.928976,0.00038356,7]
[404933358,1770695441919,-151.0,0.00038356,120]
[404933360,1770695441929,-151.0,0.00038356,120]
[404933362,1770695441937,-151.0,0.00038356,120]
[404933364,1770695441946,-151.0,0.00038356,120]
[404933366,1770695441956,-222.113481,0.00038356,120]
[404933368,1770695441965,-161.378337,0.00038356,120]
[404933370,1770695441974,-151.0,0.00038356,120]
[404933373,1770695441984,-153.734209,0.00038356,120]
[404933375,1770695441994,-151.0,0.00038356,120]
[404933377,1770695442004,-151.0,0.00038356,120]
[404933379,1770695442013,-151.0,0.00038356,120]
[404933380,1770695442024,-151.0,0.00038356,120]
[404933383,1770695442035,-151.0,0.00038356,120]
[404933385,1770695442044,-151.0,0.00038356,120]
[404933386,1770695442053,-151.0,0.00038356,120]
[404933389,1770695442064,-151.0,0.00038356,120]
[404933391,1770695442075,-151.0,0.00038356,120]
[404933393,1770695442084,-151.0,0.00038356,120]
[404933394,1770695442094,-151.0,0.00038356,120]
[404933396,1770695442104,-151.0,0.00038356,120]
[404933399,1770695442114,-151.0,0.00038356,120]
[404933401,1770695442123,-202.953952,0.00038356,120]
[404933403,1770695442132,-151.0,0.00038356,120]
[404933404,1770695442143,-151.0,0.00038356,120]
[404933407,1770695442152,-151.0,0.00038356,120]
[404933409,1770695442170,-151.0,0.00038356,120]
[404933412,1770695442182,-272.03529,0.00038356,120]
[404933414,1770695442192,-151.0,0.00038356,120]
[404933416,1770695442202,-151.0,0.00038356,120]
[404933418,1770695442213,-153.27346,0.00038356,120]
[404933420,1770695442223,-151.0,0.00038356,120]
[404933422,1770695442233,-151.0,0.00038356,120]
[404933424,1770695442243,-151.0,0.00038356,120]
[404933426,1770695442253,-151.0,0.00038356,120]
[404933428,1770695442263,-201.578378,0.00038356,120]
[404933430,1770695442272,-151.0,0.00038356,120]
[404933432,1770695442282,-157.54332,0.00038356,120]
[404933434,1770695442292,-151.0,0.00038356,120]
[404933436,1770695442301,-151.0,0.00038356,120]
[404933438,1770695442310,-151.0,0.00038356,120]
[404933440,1770695442319,-151.0,0.00038356,120]
[404933442,1770695442329,-1000.0,0.000385,15]
[404933444,1770695442338,-191.452394,0.00038577,2]
[404933447,1770695442348,-151.0,0.000386,13]
[404933449,1770695442359,-1636.04990765,0.00038678,120]
[404933451,1770695442368,-1000.0,0.000388,15]
[404933453,1770695442378,-160.0,0.0003882,3]
[404933455,1770695442387,-2000.0,0.00038967,2]
[404933457,1770695442396,-2000.0,0.00038967,2]
[404933459,1770695442406,-2000.0,0.00038967,2]
[404933461,1770695442415,-2000.0,0.00038967,2]
[404933463,1770695442424,-2000.0,0.00038967,2]
[404933465,1770695442434,-2000.0,0.00038967,2]
[404933467,1770695442443,-2000.0,0.00038967,2]
[404933469,1770695442453,-2000.0,0.00038967,2]
[404933471,1770695442462,-2000.0,0.00038967,2]
[404933473,1770695442472,-2000.0,0.00038967,2]
[404933475,1770695442481,-2000.0,0.00038967,2]
[404933477,1770695442491,-2000.0,0.00038967,2]
[404933479,1770695442500,-2000.0,0.00038967,2]
[404933481,1770695442510,-2000.0,0.00038967,2]
[404933483,1770695442519,-2000.0,0.00038967,2]
[404933485,1770695442529,-2000.0,0.00038967,2]
[404933487,1770695442539,-157.4320343,0.0003898,3]
[404933489,1770695442548,-151.0,0.0003899,120]
[404933491,1770695442558,-151.72521,0.0003899,120]
[404933493,1770695442568,-151.0,0.0003899,120]
[404933496,1770695442576,-941.67371441,0.00038998,2]
[404933498,1770695442586,-204.8313073,0.00039,120]
[404933500,1770695442595,-500.0,0.00039,120]
[404933502,1770695442604,-1000.0,0.00039,30]
[404933504,1770695442614,-600.0,0.00039,10]
[404933506,1770695442623,-1000.0,0.000391,15]
[404933508,1770695442632,-151.0,0.000393,18]
[404933510,1770695442642,-1000.0,0.000394,15]
[404933512,1770695442651,-1000.0,0.000397,15]
[404933514,1770695442665,-339.0,0.0003989,120]
[404933516,1770695442675,-4035.40090272,0.000399,2]
[404933518,1770695442685,-151.0,0.000399,120]
[404933520,1770695442695,-151.0,0.000399,120]
[404933522,1770695442704,-157.4320343,0.0003998,3]
[404933524,1770695442715,-39129.18596072,0.0003999,2]
[404933526,1770695442724,-2676.3445831,0.0003999,3]
[404933528,1770695442733,-151.0,0.0003999,120]
[404933530,1770695442742,-151.0,0.0003999,120]
[404933532,1770695442751,-151.0,0.0003999,120]
[404933534,1770695442761,-151.0,0.0003999,120]
[404933536,1770695442771,-1000.0,0.0004,30]
[404933538,1770695442780,-4385.60393433,0.0004,120]
[404933550,1770695442886,-3756.906752,0.0004,120]
[404933600,1770695443349,-75.1249711,0.0004,120]
[404933788,1770695445191,-363.38,0.00032867,10]
[404933790,1770695445200,-4822.23287632,0.0004,120]
[404933801,1770695445296,-13326.16528383,0.0004,120]
[404933932,1770695446665,-7576.73227917,0.0004,120]
[404934449,1770696418137,-150.0,0.00025376,2]
[404934450,1770696418157,-177.0,0.00027376,2]
[404934451,1770696418178,-204.0,0.00029376,2]
[404934452,1770696418197,-1240.60166235,0.00030137,120]
[404934453,1770696418218,-231.0,0.00031376,2]
[404934454,1770696418238,-258.0,0.00033376,120]
[404934455,1770696418259,-285.0,0.00035376,120]
[404934456,1770696418284,-312.0,0.00037376,120]
[404934457,1770696418305,-157.59069185,0.0003778,120]
[404934458,1770696418324,-400.0,0.00037879,2]
[404934459,1770696418348,-2005.0,0.0003788,2]
[404934460,1770696418367,-270.88244398,0.00038,2]
[404934461,1770696418389,-339.0,0.00039376,120]
[404934462,1770696418411,-10005.07020375,0.000396,2]
[404934463,1770696418431,-397.27186207,0.000396,2]
[404934465,1770696451090,-920.46030207,0.000396,2]
[404934466,1770696451108,-180.10966085,0.00039639,15]
[404934467,1770696451131,-500.0,0.00039639,15]
[404934468,1770696451152,-559.25004927,0.00039639,15]
[404934469,1770696451174,-500.0,0.00039639,15]
[404934470,1770696451195,-500.0,0.00039639,15]
[404934471,1770696451215,-500.0,0.00039639,15]
[404934472,1770696451238,-500.0,0.0003964,15]
[404934473,1770696451359,-500.0,0.0003964,7]
[404934474,1770696451382,-500.0,0.0003964,7]
[404934475,1770696451402,-500.0,0.0003964,15]
[404934476,1770696451423,-465.26464438,0.0003964,15]
[404934477,1770696451446,-500.0,0.0003964,7]
[404934478,1770696451468,-500.0,0.0003964,7]
[404934479,1770696451487,-212.21365561,0.0003964,7]
[404934480,1770696451506,-500.0,0.0003964,15]
[404934481,1770696451526,-500.0,0.0003964,7]
[404934482,1770696451546,-500.0,0.0003964,7]
[404934483,1770696451566,-500.0,0.0003964,15]
[404934484,1770696451587,-500.0,0.0003964,7]
[404934485,1770696451617,-500.0,0.0003964,7]
[404934486,1770696451640,-500.0,0.0003964,15]
[404934487,1770696451661,-500.0,0.0003964,7]
[404934488,1770696451683,-445.30291206,0.0003964,7]
[404934489,1770696451703,-285.89176399,0.0003964,15]
[404934490,1770696451723,-500.0,0.0003964,7]
[404934491,1770696451743,-500.0,0.0003964,7]
[404934492,1770696451763,-500.0,0.0003964,7]
[404934493,1770696451784,-500.0,0.0003964,7]
[404934494,1770696451806,-500.0,0.0003964,7]
[404934495,1770696451826,-500.0,0.0003964,7]
[404934496,1770696451847,-500.0,0.0003964,7]
[404934497,1770696451868,-500.0,0.0003964,7]
[404934498,1770696451888,-500.0,0.0003964,7]
[404934499,1770696451908,-500.0,0.0003964,7]
[404934500,1770696451928,-500.0,0.0003964,7]
[404934501,1770696451950,-500.0,0.0003964,7]
[404934502,1770696451970,-742.18218896,0.00039643,7]
[404934503,1770696451990,-3775.3415408,0.00039644,2]
[404934504,1770696452009,-413.6762974,0.00039644,2]
[404934505,1770696452028,-191.452394,0.00039743,2]
[404934506,1770696452047,-3631.86081243,0.000399,2]
[404934507,1770696452068,-876.24,0.0003998,10]
[404934508,1770696452087,-425.23420442,0.00039988,31]
[404934509,1770696452106,-195.73705893,0.00039988,31]
[404934510,1770696452125,-2000.0,0.00039989,3]
[404934511,1770696452144,-2000.0,0.00039989,3]
[404934512,1770696452163,-2000.0,0.00039989,3]
[404934513,1770696452182,-2000.0,0.00039989,3]
[404934514,1770696452202,-2000.0,0.00039989,3]
[404934515,1770696452222,-2000.0,0.00039989,3]
[404934516,1770696452241,-2000.0,0.00039989,3]
[404934517,1770696452261,-2000.0,0.00039989,3]
[404934518,1770696452282,-2000.0,0.00039989,3]
[404934519,1770696452301,-2000.0,0.00039989,3]
[404934520,1770696452321,-2000.0,0.00039989,3]
[404934521,1770696452341,-2000.0,0.00039989,3]
[404934522,1770696452364,-2000.0,0.00039989,3]
[404934523,1770696452383,-2000.0,0.00039989,3]
[404934524,1770696452404,-2000.0,0.00039989,3]
[404934525,1770696452425,-2000.0,0.00039989,3]
[404934526,1770696452443,-219.974354,0.00039989,120]
[404934527,1770696452463,-263.699959,0.00039989,120]
[404934528,1770696452481,-225.199655,0.00039989,120]
[404934529,1770696452500,-225.199655,0.00039989,120]
[404934530,1770696452518,-225.199655,0.00039989,120]
[404934531,1770696452539,-225.199655,0.00039989,120]
[404934532,1770696452558,-151.0,0.0003999,120]
[404934533,1770696452577,-151.0,0.0003999,120]
[404934534,1770696452596,-151.0,0.0003999,120]
[404934535,1770696452616,-83482.4859866,0.0003999,3]
[404934536,1770696452635,-742.18218896,0.0003999,3]
[404934537,1770696452654,-151.0,0.0003999,120]
[404934538,1770696452673,-160.854256,0.0003999,120]
[404934539,1770696452693,-151.0,0.0003999,120]
[404934540,1770696452711,-165.314715,0.0003999,120]
[404934541,1770696452731,-151.0,0.0003999,120]
[404934542,1770696452750,-742.18218896,0.0003999,3]
[404934543,1770696452768,-225.199655,0.0003999,120]
[404934544,1770696452786,-225.199655,0.0003999,120]
[404934545,1770696452804,-225.199655,0.0003999,120]
[404934546,1770696452824,-225.199655,0.0003999,120]
[404934547,1770696452842,-151.0,0.0003999,120]
[404934548,1770696452861,-151.0,0.0003999,120]
[404934549,1770696452879,-286.605883,0.0003999,120]
[404934550,1770696452899,-151.0,0.0003999,120]
[404934551,1770696452916,-95370.12599708,0.0004,120]
[404934552,1770696452934,-22004.06575987,0.0004,120]
[404935516,1770696649556,-567.84601068,0.000399,2]
[404935531,1770696649703,-588.8212486,0.000399,2]
[404935552,1770696649893,-1825.824096,0.000399,2]
[404935556,1770696649922,-286.18337597,0.000399,2]
[404935558,1770696649934,-151.0,0.0003999,120]
[404935560,1770696649946,-151.0,0.0003999,120]
[404935563,1770696649958,-151.0,0.0003999,120]
[404935565,1770696649969,-156.78,0.0003999,10]
[404935567,1770696649981,-297.66394309,0.00039999,31]
[404935569,1770696649993,-500.0,0.00039999,7]
[404935572,1770696650006,-160.58921245,0.00039999,7]
[404935574,1770696650017,-500.0,0.00039999,7]
[404935576,1770696650029,-30783.65606483,0.0004,120]
[404936091,1770696657642,303.10001607,0.00019089,2]
[404936092,1770696657680,303.10001603,0.000189,2]
[404936170,1770697647128,-150.0,0.00025376,2]
[404936171,1770697647148,-177.0,0.00027376,2]
[404936172,1770697647170,-204.0,0.00029376,2]
[404936173,1770697647191,-666.0,0.00030342,2]
[404936174,1770697647212,-666.0,0.00030353,2]
[404936175,1770697647232,-666.0,0.00030355,2]
[404936176,1770697647252,-666.0,0.00030615,2]
[404936177,1770697647272,-666.0,0.00030734,2]
[404936178,1770697647291,-666.0,0.00030738,2]
[404936179,1770697647311,-1600.0,0.00030896,2]
[404936180,1770697647330,-257.0,0.00030898,2]
[404936181,1770697647349,-311.0,0.00030898,2]
[404936182,1770697647368,-371.49376836,0.00030899,2]
[404936187,1770697709340,825.67972676,0.00015,2]
[404936217,1770697831719,-745.78277074,0.00030899,2]
[404936218,1770697831729,-666.0,0.00030921,2]
[404936219,1770697831738,-9.47799886,0.00030936,2]
[404936233,1770697837785,-656.52200114,0.00030936,2]
[404936235,1770697837794,-666.0,0.00030997,7]
[404936237,1770697837804,-184.32246313,0.00031069,30]
[404936239,1770697837815,-293.27728427,0.00031069,30]
[404936241,1770697837826,-666.0,0.00031072,2]
[404936243,1770697837835,-666.0,0.00031118,2]
[404936245,1770697837844,-800.0,0.00031141,3]
[404936247,1770697837855,-666.0,0.00031142,2]
[404936249,1770697837865,-666.0,0.00031204,2]
[404936251,1770697837874,-231.0,0.00031376,2]
[404936253,1770697837884,-666.0,0.00031501,2]
[404936255,1770697837893,-666.0,0.0003166,2]
[404936257,1770697837902,-300.0,0.00031764,30]
[404936259,1770697837911,-300.0,0.00031764,30]
[404936261,1770697837920,-300.0,0.00031764,30]
[404936263,1770697837930,-300.0,0.00031764,30]
[404936265,1770697837939,-300.0,0.00031764,30]
[404936267,1770697837951,-300.0,0.00031764,30]
[404936269,1770697837960,-300.0,0.00031764,30]
[404936271,1770697837970,-300.0,0.00031764,30]
[404936273,1770697837980,-300.0,0.00031764,30]
[404936275,1770697837990,-300.0,0.00031764,30]
[404936277,1770697837999,-300.0,0.00031764,30]
[404936279,1770697838008,-300.0,0.00031764,30]
[404936281,1770697838017,-300.0,0.00031764,30]
[404936283,1770697838026,-300.0,0.00031764,30]
[404936285,1770697838036,-300.0,0.00031764,30]
[404936287,1770697838045,-666.0,0.00031826,2]
[404936289,1770697838054,-666.0,0.00032087,2]
[404936291,1770697838064,-666.0,0.00032518,2]
[404936293,1770697838074,-666.0,0.00032571,2]
[404936295,1770697838083,-666.0,0.00032657,2]
[404936297,1770697838092,-666.0,0.00032695,2]
[404936298,1770697838101,-500.0,0.00032838,2]
[404936300,1770697838110,-666.0,0.00032838,7]
[404936302,1770697838120,-170.978,0.00032999,34]
[404936304,1770697838129,-666.0,0.00033082,2]
[404936306,1770697838139,-413.36163862,0.00033091,7]
[404936308,1770697838149,-500.0,0.00033091,7]
[404936310,1770697838159,-500.0,0.00033091,7]
[404936312,1770697838169,-500.0,0.00033091,7]
[404936314,1770697838178,-500.0,0.00033091,7]
[404936316,1770697838188,-626.49439783,0.00033091,7]
[404936318,1770697838198,-500.0,0.00033091,7]
[404936320,1770697838207,-500.0,0.00033091,7]
[404936322,1770697838217,-500.0,0.00033091,7]
[404936324,1770697838227,-500.0,0.00033091,7]
[404936326,1770697838236,-500.0,0.00033091,7]
[404936328,1770697838245,-478.47266396,0.00033091,7]
[404936330,1770697838255,-500.0,0.00033091,7]
[404936332,1770697838265,-500.0,0.00033091,7]
[404936334,1770697838275,-500.0,0.00033091,7]
[404936336,1770697838284,-500.0,0.00033091,7]
[404936338,1770697838294,-500.0,0.00033091,7]
[404936340,1770697838303,-500.0,0.00033091,7]
[404936342,1770697838313,-500.0,0.00033091,7]
[404936344,1770697838322,-500.0,0.00033091,7]
[404936346,1770697838332,-216.554722,0.00033091,7]
[404936348,1770697838341,-500.0,0.00033091,7]
[404936350,1770697838350,-500.0,0.00033091,7]
[404936352,1770697838359,-500.0,0.00033091,7]
[404936353,1770697838368,-500.0,0.00033091,7]
[404936356,1770697838379,-207.34970424,0.00033091,7]
[404936357,1770697838389,-500.0,0.00033091,7]
[404936359,1770697838398,-500.0,0.00033091,7]
[404936361,1770697838407,-500.0,0.00033091,7]
[404936363,1770697838417,-500.0,0.00033091,7]
[404936364,1770697838426,-500.0,0.00033091,7]
[404936365,1770697838435,-500.0,0.00033091,7]
[404936366,1770697838445,-500.0,0.00033091,7]
[404936367,1770697838454,-500.0,0.00033091,7]
[404936368,1770697838463,-500.0,0.00033091,7]
[404936369,1770697838472,-500.0,0.00033091,7]
[404936370,1770697838483,-190.69052152,0.00033091,7]
[404936371,1770697838492,-500.0,0.00033091,7]
[404936372,1770697838502,-500.0,0.00033091,7]
[404936373,1770697838512,-500.0,0.00033091,7]
[404936374,1770697838521,-500.0,0.00033091,7]
[404936375,1770697838530,-500.0,0.00033091,7]
[404936376,1770697838540,-418.76334193,0.00033091,7]
[404936377,1770697838551,-500.0,0.00033091,7]
[404936378,1770697838562,-500.0,0.00033091,7]
[404936379,1770697838572,-500.0,0.00033091,7]
[404936380,1770697838584,-500.0,0.00033091,7]
[404936381,1770697838594,-500.0,0.00033091,7]
[404936382,1770697838603,-500.0,0.00033091,7]
[404936383,1770697838613,-500.0,0.00033091,7]
[404936384,1770697838623,-500.0,0.00033091,7]
[404936385,1770697838632,-500.0,0.00033091,7]
[404936386,1770697838642,-500.0,0.00033091,7]
[404936387,1770697838652,-500.0,0.00033091,7]
[404936388,1770697838662,-500.0,0.00033091,7]
[404936389,1770697838672,-500.0,0.00033091,7]
[404936390,1770697838682,-500.0,0.00033091,7]
[404936391,1770697838692,-500.0,0.00033091,7]
[404936392,1770697838702,-500.0,0.00033091,7]
[404936393,1770697838712,-500.0,0.00033091,7]
[404936394,1770697838721,-500.0,0.00033091,7]
[404936395,1770697838731,-500.0,0.00033091,7]
[404936396,1770697838740,-500.0,0.00033091,7]
[404936397,1770697838750,-500.0,0.00033091,7]
[404936398,1770697838760,-500.0,0.00033091,7]
[404936399,1770697838770,-500.0,0.00033091,7]
[404936400,1770697838784,-500.0,0.00033091,7]
[404936401,1770697838794,-500.0,0.00033091,7]
[404936402,1770697838804,-500.0,0.00033091,7]
[404936403,1770697838813,-500.0,0.00033091,7]
[404936404,1770697838824,-500.0,0.00033091,7]
[404936405,1770697838834,-500.0,0.00033091,7]
[404936406,1770697838846,-500.0,0.00033091,7]
[404936407,1770697838857,-500.0,0.00033091,7]
[404936408,1770697838867,-500.0,0.00033091,7]
[404936409,1770697838876,-500.0,0.00033091,7]
[404936410,1770697838886,-500.0,0.00033091,7]
[404936411,1770697838895,-500.0,0.00033091,7]
[404936412,1770697838904,-500.0,0.00033091,7]
[404936413,1770697838914,-500.0,0.00033091,7]
[404936414,1770697838923,-500.0,0.00033091,7]
[404936415,1770697838933,-500.0,0.00033091,7]
[404936416,1770697838944,-500.0,0.00033091,7]
[404936417,1770697838954,-500.0,0.00033091,7]
[404936418,1770697838964,-500.0,0.00033091,7]
[404936419,1770697838974,-500.0,0.00033091,7]
[404936420,1770697838984,-500.0,0.00033091,7]
[404936421,1770697838994,-500.0,0.00033091,7]
[404936422,1770697839004,-500.0,0.00033091,7]
[404936423,1770697839016,-500.0,0.00033091,7]
[404936424,1770697839025,-500.0,0.00033091,7]
[404936425,1770697839035,-500.0,0.00033091,7]
[404936426,1770697839045,-500.0,0.00033091,7]
[404936427,1770697839055,-500.0,0.00033091,7]
[404936428,1770697839065,-500.0,0.00033091,7]
[404936429,1770697839074,-500.0,0.00033091,7]
[404936430,1770697839084,-742.18218896,0.00033093,7]
[404936431,1770697839094,-666.0,0.00033297,2]
[404936432,1770697839103,-258.0,0.00033376,120]
[404936433,1770697839112,-666.0,0.00033447,2]
[404936434,1770697839122,-600.0,0.00033495,30]
[404936435,1770697839131,-742.18218896,0.000343,7]
[404936436,1770697839140,-165.0,0.00035,30]
[404936437,1770697839150,-403.0777952,0.00035172,2]
[404936438,1770697839160,-285.0,0.00035376,120]
[404936439,1770697839171,-220.62574655,0.00036259,2]
[404936440,1770697839180,-720.0,0.00036845,30]
[404936441,1770697839189,-312.0,0.00037376,120]
[404936442,1770697839199,-151.0,0.00038356,120]
[404936443,1770697839208,-282.917352,0.00038356,120]
[404936444,1770697839218,-457.72082963,0.0003879,2]
[404936445,1770697839227,-781.0,0.000388,2]
[404936446,1770697839237,-3177.11384833,0.00039,120]
[404936447,1770697839246,-339.0,0.00039376,120]
[404936448,1770697839256,-2941.80725808,0.000399,2]
[404936449,1770697839266,-160.0,0.00039948,3]
[404936450,1770697839275,-783.92,0.0003999,10]
[404936451,1770697839285,-1311.5575858,0.00039994,2]
[404936452,1770697839295,-1030.35575,0.00039994,2]
[404936453,1770697839304,-742.18218896,0.00039998,7]
[404936454,1770697839314,-2000.0,0.00039998,7]
[404936455,1770697839323,-2000.0,0.00039998,7]
[404936456,1770697839332,-2000.0,0.00039998,7]
[404936457,1770697839341,-1897.61386322,0.00039998,7]
[404936458,1770697839350,-209.40437684,0.00039998,7]
[404936459,1770697839359,-217.15233878,0.00039998,7]
[404936460,1770697839368,-225.18697532,0.00039998,7]
[404936461,1770697839378,-265.77516468,0.00039998,7]
[404936462,1770697839388,-156.291,0.00039999,2]
[404936463,1770697839398,-259.04613723,0.00039999,2]
[404936464,1770697839407,-80402.27954026,0.0004,120]
[404936517,1770697840046,-671.77936835,0.00032992,2]
[404936520,1770697840057,-1779.15298139,0.00032992,2]
[404936521,1770697840066,-4854.96779976,0.0004,120]
[404936954,1770697937866,-1101.23189271,0.00024953,2]
[404937052,1770698280104,256.72,0.00012987,2]
[404937076,1770698632908,5000.0,0.000235,2]
[404937080,1770698654864,986.61410689,0.000235,2]
[404937083,1770698724329,504.34616418,0.00013699,2]
[404937098,1770698772186,500.0,0.00013699,2]
[404937104,1770698820322,5000.0,0.000235,2]
[404937127,1770698961228,-150.0,0.00024894,2]
[404937128,1770698961252,-177.0,0.00026894,2]
[404937129,1770698961272,-204.0,0.00028894,2]
[404937130,1770698961294,-231.0,0.00030894,2]
[404937131,1770698961318,-158.8299138,0.00031075,60]
[404937132,1770698961342,-366.32,0.00031148,27]
[404937133,1770698961363,-300.0,0.00031939,2]
[404937134,1770698961388,-300.0,0.00032577,30]
[404937135,1770698961413,-300.0,0.00032577,30]
[404937136,1770698961438,-300.0,0.00032577,30]
[404937137,1770698961461,-300.0,0.00032577,30]
[404937138,1770698961484,-300.0,0.00032577,30]
[404937139,1770698961508,-300.0,0.00032577,30]
[404937140,1770698961536,-300.0,0.00032577,30]
[404937141,1770698961562,-300.0,0.00032577,30]
[404937142,1770698961587,-300.0,0.00032577,30]
[404937143,1770698961615,-300.0,0.00032577,30]
[404937144,1770698961641,-300.0,0.00032577,30]
[404937145,1770698961665,-300.0,0.00032577,30]
[404937146,1770698961688,-300.0,0.00032577,30]
[404937147,1770698961711,-300.0,0.00032577,30]
[404937148,1770698961735,-300.0,0.00032577,30]
[404937149,1770698961762,-258.0,0.00032894,120]
[404937150,1770698961786,-285.0,0.00034894,120]
[404937151,1770698961810,-3158.34040325,0.00035,7]
[404937152,1770698961834,-530.58315705,0.00035419,5]
[404937153,1770698961860,-600.0,0.00035699,30]
[404937154,1770698961884,-1048.2801558,0.00035952,2]
[404937155,1770698961909,-480.3,0.00035973,10]
[404937156,1770698961931,-500.0,0.00035981,2]
[404937157,1770698961951,-500.0,0.00035981,2]
[404937158,1770698961973,-388.82,0.00035982,2]
[404937159,1770698962000,-500.0,0.00035982,15]
[404937160,1770698962027,-500.0,0.00035982,15]
[404937161,1770698962048,-500.0,0.00035982,15]
[404937162,1770698962071,-500.0,0.00035982,15]
[404937163,1770698962094,-500.0,0.00035982,15]
[404937164,1770698962119,-451.93456685,0.00035982,15]
[404937165,1770698962141,-500.0,0.00035982,7]
[404937166,1770698962163,-500.0,0.00035982,7]
[404937167,1770698962186,-500.0,0.00035982,7]
[404937168,1770698962209,-460.69006667,0.00035982,7]
[404937169,1770698962232,-500.0,0.00035982,7]
[404937170,1770698962255,-500.0,0.00035982,7]
[404937171,1770698962277,-500.0,0.00035982,7]
[404937172,1770698962300,-500.0,0.00035982,7]
[404937173,1770698962324,-500.0,0.00035982,7]
[404937174,1770698962349,-500.0,0.00035982,7]
[404937175,1770698962374,-500.0,0.00035982,7]
[404937176,1770698962414,-500.0,0.00035982,7]
[404937177,1770698962443,-500.0,0.00035982,7]
[404937178,1770698962471,-500.0,0.00035982,7]
[404937179,1770698962497,-663.75760117,0.00035982,7]
[404937180,1770698962521,-663.75760117,0.00035982,7]
[404937181,1770698962682,-663.75760117,0.00035982,7]
[404937182,1770698962705,-663.75760117,0.00035982,7]
[404937183,1770698962725,-663.75760117,0.00035982,7]
[404937184,1770698962745,-663.75760117,0.00035982,7]
[404937185,1770698962766,-663.75760117,0.00035982,7]
[404937186,1770698962785,-663.75760117,0.00035982,7]
[404937187,1770698962805,-663.75760117,0.00035982,7]
[404937188,1770698962828,-663.75760117,0.00035982,7]
[404937189,1770698962848,-663.75760117,0.00035982,7]
[404937190,1770698962869,-663.75760117,0.00035982,7]
[404937191,1770698962889,-663.75760117,0.00035982,7]
[404937192,1770698962910,-663.75760117,0.00035982,7]
[404937193,1770698962930,-663.75760117,0.00035982,7]
[404937194,1770698962951,-663.75760117,0.00035982,7]
[404937195,1770698962972,-663.75760117,0.00035982,7]
[404937196,1770698962992,-663.75760117,0.00035982,7]
[404937197,1770698963012,-663.75760117,0.00035982,7]
[404937198,1770698963034,-663.75760117,0.00035982,7]
[404937199,1770698963055,-663.75760117,0.00035982,7]
[404937200,1770698963075,-663.75760117,0.00035982,7]
[404937201,1770698963096,-663.75760117,0.00035982,7]
[404937202,1770698963119,-663.75760117,0.00035982,7]
[404937203,1770698963141,-663.75760117,0.00035982,7]
[404937204,1770698963163,-663.75760117,0.00035982,7]
[404937205,1770698963184,-663.75760117,0.00035982,7]
[404937206,1770698963204,-663.75760117,0.00035982,7]
[404937207,1770698963224,-663.75760117,0.00035982,7]
[404937208,1770698963244,-663.75760117,0.00035982,7]
[404937209,1770698963264,-663.75760117,0.00035982,7]
[404937210,1770698963285,-663.75760117,0.00035982,7]
[404937211,1770698963305,-663.75760117,0.00035982,7]